Cogmind - Beta 16.1 @@@ ROGUE MODE // 2026.04.29 @ 22:27:01 Player: Mimendra Result: Destroyed by Y-45 Defender with Heavy Assault Rifle Performance ------------- Evolutions (1) 500 Regions Visited (3) 600 Robots Destroyed (8) 40 Value Destroyed (213) 213 Prototype IDs (2) 40 Alien Tech Used (0) 0 Bonus (0) 0 TOTAL SCORE: 1393 Bonus ------- None Cogmind --------- Core Integrity 0/400 Matter 290/300 Energy 100/100 System Corruption 0% Temperature Cool (27) Movement Core (250) Ox4 Location -9/Materials Parts ------- > --- POWER (1) -------- (None) > --- PROPULSION (2) --- (None) > --- UTILITY (3) ------ Small Storage Unit Power Shielding Field Recycling Unit > --- WEAPON (3) ------- (None) > --- INVENTORY (8) ---- Heat Sink Seismic Detector ECM Suite Tractor Beam Peak State ------------ > --- POWER ------------ Ion Engine > --- PROPULSION ------- Aluminum Leg Aluminum Leg > --- UTILITY ---------- Small Storage Unit ECM Suite Power Shielding > --- WEAPON ----------- Medium Laser Rocket Launcher Welding Torch > --- INVENTORY -------- Heat Sink Seismic Detector ECM Suite Tractor Beam Field Recycling Unit Assault Rifle Light Assault Rifle [Rating: 10] Favorites ----------- Power Ion Engine Engine Ion Engine Propulsion Wheel Leg Aluminum Leg Wheel Wheel Utility Small Storage Unit Device ECM Suite Storage Small Storage Unit Protection Power Shielding Weapon Assault Rifle Energy Gun Medium Laser Ballistic Gun Assault Rifle Launcher Rocket Launcher Special Weapon Welding Torch Build | -11 -10 -10 -9 ------- Run | Yrd Mat Min Mat Slots Evolved 2 | . . . 2 Power . | . . . . Propulsion . | . . . . Utility 1 | . . . 1 Weapon 1 | . . . 1 Parts Attached 16 | 6 2 . 8 Power 2 | 1 . . 1 Engine 2 | 1 . . 1 Core . | . . . . Reactor . | . . . . Propulsion 4 | 2 . . 2 Treads . | . . . . Leg 2 | . . . 2 Wheel 2 | 2 . . . Hover . | . . . . Flight . | . . . . Utility 4 | 1 1 . 2 Device 2 | . 1 . 1 Storage 1 | 1 . . . Processor . | . . . . Hackware . | . . . . Protection 1 | . . . 1 Artifact . | . . . . Weapon 6 | 2 1 . 3 Energy Gun 2 | 1 1 . . Energy Cannon . | . . . . Ballistic Gun 2 | 1 . . 1 Ballistic Cannon . | . . . . Launcher 1 | . . . 1 Special Weapon 1 | . . . 1 Impact Weapon . | . . . . Slashing Weapon . | . . . . Piercing Weapon . | . . . . Special Melee Weapon . | . . . . Unidentified Prototypes . | . . . . Parts Lost 10 | . . . 10 Power 2 | . . . 2 Propulsion 2 | . . . 2 Utility 1 | . . . 1 Weapon 5 | . . . 5 Highest Loss Streak 10 | . . . 10 To Critical Strikes . | . . . . Average Backups 5 | 2 5 6 5 Power . | . . . . Propulsion 1 | 1 2 2 . Utility 2 | . 1 2 3 Weapon . | . 1 1 . Tool/Special . | . . . . Unused Backups 6 | 1 1 . 4 Power 1 | . 1 . . Propulsion 1 | 1 . . . Utility 4 | . . . 4 Weapon . | . . . . Tool/Special . | . . . . Average Slot Usage (%) 93 | . 98 100 85 Engine 12 | . 14 14 9 Leg 3 | . . . 10 Wheel 20 | . 28 28 8 Device 11 | . 12 14 8 Storage 12 | . 14 14 11 Protection 4 | . . . 11 Energy Gun 12 | . 14 14 9 Ballistic Gun 11 | . 14 14 8 Special Weapon 3 | . . . 7 Peak Build Rating 10 | 6 7 7 10 Average Rating 7 | 3 6 7 8 On Entrance 5 | . 6 7 7 Avg Prop Armor Cover (%) . | . . . . Naked Turns . | . . . . Heaviest Build 24 | 13 16 16 24 Greatest Support 26 | 26 26 26 26 Greatest Overweight (x) 6 | . . . 6 Average Overweight (x) . | . . . . Largest Inventory Capacity 8 | 8 8 8 8 Average Capacity 7 | 7 8 8 8 Most Carried 8 | 5 8 6 8 Average Carried 5 | 2 5 6 5 Final Capacity 8 | 8 8 8 8 Final Carried 6 | 4 6 6 4 Class Distribution -------------------- 74% | Mutant 25% | Tank Dominant Class ---------------- Mutant | -10/Materials Mutant | -10/Mines Tank | -9/Materials Resources | -11 -10 -10 -9 ----------- Run | Yrd Mat Min Mat Matter Collected 399 | 254 68 6 71 Remotely . | . . . . Salvage Created 238 | . 104 . 134 Parts 14 | . 5 . 9 Haulers Intercepted . | . . . . Recyclers Shooed . | . . . . Parts Field Recycled . | . . . . Retrieved Matter . | . . . . Parts Self-Destructed . | . . . . Prevented . | . . . . Parts Restored . | . . . . Kills | -11 -10 -10 -9 ------- Run | Yrd Mat Min Mat Combat Hostiles Destroyed 7 | . 2 . 5 Guns 6 | . 2 . 4 AOE 1 | . . . 1 Classes Destroyed 3 | . 1 . 2 Worker 1 | . . . 1 Swarmer 3 | . . . 3 Grunt 4 | . 2 . 2 Best Kill Streak 3 | . 1 . 3 Combat Bots Only 3 | . 1 . 3 Max Kills in Single Turn 2 | . 1 . 2 Gunslinging . | . . . . Exploded 1 | . . . 1 Melee . | . . . . Uniques/NPCs Destroyed . | . . . . Combat | -11 -10 -10 -9 -------- Run | Yrd Mat Min Mat Hostile Shots Fired 170 | . 19 4 147 Missed 51 | . 9 . 42 Hits 119 | . 10 4 105 Projectile 119 | . 10 4 105 AOE 5 | . . 5 . Critical Strikes 4 | . . . 4 Damage Taken 1395 | . 143 168 1084 Core 451 | . 25 24 402 Absorbed by Shields . | . . . . Redirected to Shielding 34 | . . . 34 Core Remaining (%) 90 | 100 . 80 . Volleys Fired 30 | . 14 1 15 Largest 3 | . 2 2 3 Hottest 90 | . 60 70 90 Shots Fired 59 | . 28 2 29 Gun 54 | . 28 2 24 Cannon . | . . . . Launcher 3 | . . . 3 Special 2 | . . . 2 Kinetic 24 | . 14 1 9 Thermal 32 | . 14 1 17 Explosive 3 | . . . 3 Electromagnetic . | . . . . Robot Hit Streak 6 | . 5 6 3 Robot Miss Streak 4 | . 4 1 2 Penetration Max . | . . . . Secondary Targets 1 | . . . 1 Max Gunslinging Chain 1 | . . . 1 Shots Hit Robots 29 | . 16 1 12 Core Hits 15 | . 5 1 9 Critical Kills . | . . . . Critical Parts Destroyed . | . . . . Critical Strikes . | . . . . Melee Attacks . | . . . . Impact . | . . . . Slashing . | . . . . Piercing . | . . . . Sneak Attacks . | . . . . Combat Hostiles . | . . . . Follow-up Attacks . | . . . . Damage Inflicted 439 | . 189 13 237 Guns 323 | . 189 12 122 Cannons . | . . . . Explosions 107 | . . . 107 Melee . | . . . . Ramming 7 | . . 1 6 Kinetic 170 | . 123 . 47 Thermal 155 | . 66 12 77 Explosive 107 | . . . 107 Electromagnetic . | . . . . Impact . | . . . . Slashing . | . . . . Piercing . | . . . . Highest Corruption . | . . . . Average Corruption . | . . . . Corruption Purged . | . . . . Corruption Blocked . | . . . . Overload Shots . | . . . . Overflow Damage . | . . . . Projectiles . | . . . . Explosions . | . . . . Melee . | . . . . Knockbacks . | . . . . Impact . | . . . . Kinetic . | . . . . Secondary . | . . . . Self-Inflicted Damage 39 | . . . 39 Shots 1 | . . . 1 Rammed 1 | . . 1 . Targets Rammed 3 | . . 1 2 Kicked 2 | . . . 2 Crushed . | . . . . Highest Temperature 78 | . 66 9 78 Average Temperature 31 | . 43 6 23 Received Heat Transfer 342 | . 84 . 258 Siege Activations . | . . . . Martial Activations . | . . . . Shielding Activations . | . . . . Robots Disrupted . | . . . . Combat Hostiles . | . . . . Robots Corrupted . | . . . . Combat Hostiles . | . . . . Parts Fried . | . . . . Impact Corruptions . | . . . . Robots Melted . | . . . . Combat Hostiles . | . . . . Parts Melted . | . . . . Heat Transferred 434 | . 150 37 247 Parts Sabotaged . | . . . . Parts Stolen . | . . . . Parts Stripped . | . . . . Power Chain Reactions . | . . . . Alert | -11 -10 -10 -9 ------- Run | Yrd Mat Min Mat Maximum Alert Level . | . . . . Low Security (%) 100 | 100 100 100 100 Level 1 . | . . . . Level 2 . | . . . . Level 3 . | . . . . Level 4 . | . . . . Level 5 . | . . . . High Security . | . . . . Max Security . | . . . . Peak Influence 183 | . 39 . 183 Initial . | . . . . Average 24 | . 8 . 58 Influence Increases 317 | . 59 . 258 Destroy 0b10 Robot/C 140 | . 40 . 100 Destroy 0b10 Robot/NC 5 | . . . 5 Destroy Leader 30 | . 10 . 20 Successful Hack 14 | . 9 . 5 Disable Machine 30 | . . . 30 Destroy Structure 23 | . . . 23 Lose Combat Pursuer 75 | . . . 75 Influence Decreases 224 | . 59 . 165 Time Decay 124 | . 59 . 65 Lost Part 100 | . . . 100 Squads Dispatched 2 | . 1 . 1 Investigation . | . . . . Extermination . | . . . . Reinforcement 2 | . 1 . 1 Assault . | . . . . Garrison . | . . . . Intercept . | . . . . Searches Triggered . | . . . . Construction Impeded . | . . . . Haulers Reinforced . | . . . . Active Scanning Responses . | . . . . Cargo Convoy Interrupts . | . . . . Stealth | -11 -10 -10 -9 --------- Run | Yrd Mat Min Mat Distress Signals 1 | . . . 1 Communications Jammed . | . . . . Distress Signals . | . . . . Times Spotted 26 | . 4 6 16 Peak Tracking Total 8 | . 3 7 8 Tactical Retreats 2 | . . . 2 Traps | -11 -10 -10 -9 ------- Run | Yrd Mat Min Mat Traps Triggered . | . . . . Indirectly . | . . . . Trap Hack Attempts . | . . . . Triggered . | . . . . Disarmed . | . . . . Reprogrammed . | . . . . Reused . | . . . . Traps Extracted . | . . . . Installed . | . . . . Triggered . | . . . . Machines | -11 -10 -10 -9 ---------- Run | Yrd Mat Min Mat Machines Disabled 2 | . . . 2 Max in Single Turn 1 | . . . 1 Machines Repaired . | . . . . Machines Dismantled . | . . . . Machines Sabotaged . | . . . . Overloaded Fab Kills . | . . . . Hacking | -11 -10 -10 -9 --------- Run | Yrd Mat Min Mat Machines Accessed 2 | . 1 . 1 Terminals 2 | . 1 . 1 Fabricators . | . . . . Repair Stations . | . . . . Recycling Units . | . . . . Scanalyzers . | . . . . Garrison Access . | . . . . Total Hacks 9 | . 3 . 6 Successful 7 | . 3 . 4 Failed 2 | . . . 2 Catastrophic . | . . . . Database Lockouts . | . . . . Manual . | . . . . Terminals 9 | . 3 . 6 Fabricators . | . . . . Repair Stations . | . . . . Recycling Units . | . . . . Scanalyzers . | . . . . Garrison Access . | . . . . Terminal Hacks 7 | . 3 . 4 Prototype ID Bank 1 | . . . 1 Emergency Access Points 1 | . . . 1 Alert Level 1 | . . . 1 Dispatch Records 1 | . 1 . . Transport Status 1 | . 1 . . Hauler Manifests 1 | . . . 1 Zone Layout 1 | . 1 . . Fabricator Hacks . | . . . . Repair Station Hacks . | . . . . Recycling Unit Hacks . | . . . . Scanalyzer . | . . . . Garrison Access Hacks . | . . . . Unauthorized Hacks . | . . . . Terminals . | . . . . Fabricators . | . . . . Repair Stations . | . . . . Recycling Units . | . . . . Scanalyzers . | . . . . Garrison Access . | . . . . Data Cores Recovered . | . . . . Used . | . . . . Hacking Detections 2 | . 1 . 1 Full Trace Events . | . . . . Feedback Events . | . . . . Feedback Blocked . | . . . . Robot Schematics Acquired . | . . . . Robots Built . | . . . . Authchips . | . . . . Time . | . . . . Total Robot Build Rating . | . . . . Part Schematics Acquired . | . . . . Parts Built . | . . . . Authchips . | . . . . Time . | . . . . Total Part Build Rating . | . . . . Part Studies Acquired . | . . . . Parts Repaired . | . . . . Time . | . . . . Parts Recycled . | . . . . Recycled Matter . | . . . . Retrieved Matter . | . . . . Retrieved Components . | . . . . Parts Scanalyzed . | . . . . Part Schematics Acquired . | . . . . Parts Damaged . | . . . . Bothacking | -11 -10 -10 -9 ------------ Run | Yrd Mat Min Mat Used RIF Installer . | . . . . Robots Hacked . | . . . . Non-combat . | . . . . Combat . | . . . . Robot Hacks Applied . | . . . . Relay Couplers Released . | . . . . Fabnet Peak Effective % . | . . . . Robots Rewired . | . . . . Allies Hacked . | . . . . Hacks Repelled . | . . . . Allies | -11 -10 -10 -9 -------- Run | Yrd Mat Min Mat Total Allies . | . . . . Largest Group . | . . . . Highest-Rated Group . | . . . . Highest-Rated Ally . | . . . . Total Orders . | . . . . Ally Attacks . | . . . . Total Damage . | . . . . Kills . | . . . . Allies Corrupted . | . . . . Allies Melted . | . . . . Intel | -11 -10 -10 -9 ------- Run | Yrd Mat Min Mat Active Infowar (turns) 425 | . 210 99 116 ECM 425 | . 210 99 116 Robot Analysis Total . | . . . . Derelict Logs Recovered . | . . . . Drone Launches . | . . . . Drone Recoveries . | . . . . Exploration | -11 -10 -10 -9 ------------- Run | Yrd Mat Min Mat Turns Passed 602 | 57 225 99 221 Spaces Moved 432 | 51 172 75 134 Core 28 | 17 . . 11 Treads . | . . . . Legs 43 | . . . 43 Wheels 361 | 34 172 75 80 Hover . | . . . . Flight . | . . . . Fastest Speed 50 | 50 90 90 90 Average Speed 97 | 76 90 90 120 Slowest Speed 350 | 90 90 90 350 Overloaded Moves . | . . . . Propulsion Burnouts . | . . . . Robots Hopped . | . . . . Potential Cave-ins . | . . . . Cave-ins Triggered . | . . . . Exploration Rate (%) 16 | 4 27 21 14 Regions Visited 3 Branch Regions 1 Pre-discovered Areas . | . . . . Known Exits Taken . | . . . . Unknown Exits Taken 3 | 1 1 1 . Scrap Searched . | . . . . Spaces Dug . | . . . . Terrain Destroyed 29 | . . . 29 Melee . | . . . . Projectile . | . . . . AOE 29 | . . . 29 Terrain Rammed . | . . . . Walls Destroyed . | . . . . Machines Disabled . | . . . . Actions | -11 -10 -10 -9 --------- Run | Yrd Mat Min Mat Total 557 | 69 215 104 169 Wait 49 | 1 20 28 . Move 429 | 50 171 74 134 Hop . | . . . . Pick Up 21 | 11 4 . 6 Fast Attach 1 | . 1 . . Attach 17 | 6 2 . 9 Detach 2 | . 1 . 1 Swap . | . . . . Drop 5 | 1 2 . 2 Fire 30 | . 14 1 15 Melee . | . . . . Ram 1 | . . 1 . Kick 2 | . . . 2 Crush . | . . . . Escape Stasis . | . . . . Rewire . | . . . . Trap . | . . . . Miscellaneous . | . . . . Route ------- -11/Scrapyard -10/Materials -10/Mines -9/Materials History --------- Turn | Location | Event 12 | -11/Scrapyard | Discovered new exit (range 16) 58 | -11/Scrapyard | Entered Materials 269 | -10/Materials | Discovered new exit (range 16) 283 | -10/Materials | Entered Mines 308 | -10/Mines | Discovered new exit (range 7) 315 | -10/Mines | Build established: Mutant 362 | -10/Mines | Assembled infested the area 367 | -10/Mines | Assisted by a Guerilla fighting off Assembled 382 | -10/Mines | Entered Materials 382 | -9/Materials | Evolved 2 slots: Utility x1, Weapon x1 587 | -9/Materials | Core integrity fell below 50% 600 | -9/Materials | Core integrity fell below 20% 603 | -9/Materials | Destroyed by Y-45 Defender with Heavy Assault Rifle Last Messages --------------- Assault Rifle destroyed. K-01 Serf collects debris. Aluminum Leg destroyed. Med. Laser destroyed. Acquired 15 matter. Kicked S-10 Pest. K-01 Serf collects debris. R-06 Scavenger collects Lgt. Assault Rifle. K-01 Serf destroyed. S-10 Pest destroyed. Lgt. Assault Rifle destroyed. Aluminum Leg destroyed. Acquired 23 matter. R-06 Scavenger collects Lgt. Assault Rifle. K-01 Serf collects debris. Ion Engine destroyed. K-01 Serf collects debris. U-05 Engineer builds a Door. S-10 Pest destroyed. Critical hit (Burn: +37). Map ----- +----------------------------------------------------+ | ????????????????? ?# ## + #???????? | | ?????????????????? ?# ## # #???????? | | ??????????????????? ## ## # #???????? | | ???????????????????# ## ## ##########?????? | | ???????????????????# ## ## #???? #?????? | | ???????????????????# ## ## #?? #?????? | | ??????????????????## ## ## # #?????? | | ???????????######## ###+### + #?????? | | ???????????# # #?????? | | ???????????+ T #?? #?????? | | ???????????# #???? = #?????? | | ????????????####### ###+#######?????? #?????? | | ????????????######## ##? ??????????????#?????? | | ????????????# # #??"""????????????????????? | | ??#+#???????# "" # #? """ ???????????????????? | | ??# #???????# "T + #? """ ???????????????????? | | ### #???????# "" # ## ??????????????????? | | # #???????# # ## ??????????????????? | | + #???????# # #########?????????????????? | | # ##???#######+### #?????????????????????????? | | # ##### #as #?????????????????????????? | | / """ # g #?????????????????????????? | | # #####%""" = u t ############## ?????????? | | ## ##??# "" ! ! #Ys =????????? | | # ##?# ** !!! #= Y ????????? | | %! #?#=%[ !!! # @ ????????? | | = #?# ################??????????????? | | % ##?# #?????????????????????????????? | | =% #??###########?????????????????????????????? | | ! #??????????????????????????????????????????? | | # ##??????????????????????????????????????????? | | ???????????????????????????????????????????? | | # ???????????????????????????????????????????? | | # #??????????????????????????????????????????? | | ## ##??????????????????????????????????????????? | | ?# ??????????????????????????????????????????? | | ?# ??????????????????????????????????????????? | | ?# *! ??????????????????????????????????????????? | | ?# *! ?????????????????????????????????????????? | | ?? ?????????????????????????????????????????? | | ?? ?????????????????????????????????????????? | | ?? ???????????????????????????????????????????? | | ?????????????????????????????????????????????????? | | ?????????????????????????????????????????????????? | | ?????????????????????????????????????????????????? | | ?????????????????????????????????????????????????? | | ?????????????????????????????????????????????????? | | ?????????????????????????????????????????????????? | | ?????????????????????????????????????????????????? | | ?????????????????????????????????????????????????? | +----------------------------------------------------+ Best States ------------- Heat Dissipation 28 Energy Generation 10 Energy Capacity 250 Matter Stores 300 Matter Capacity 300 Sight Range 16 Terrain Scan Density 10 ECM Strength 1 Power Shielding 33 Evasion (%) 55 Item Schematics ----------------- None Robot Schematics ------------------ None Fabricated ------------ Nothing Repaired ---------- Nothing Studied --------- None Alien Tech Used ----------------- None Achievements -------------- DATA ERROR: Steam Global Achievement% For Emergencies Only I Survived The Infestation There's More Where That Came From Challenges ------------ None Game ------ Seed DecoyXenonMegatreads Manual? 0 Play Time 00:21:15 Cumulative 2.7 hours Start 2026.04.29 @ 22:01:56 End 2026.04.29 @ 22:27:01 Sessions 1 Manual Loads 0 Difficulty Rogue Special Mode None Game No. 4 Rogue 4 Adventurer 0 Explorer 0 Win Type - Total 0 Types 0/0/0/0/0/0/0/0/0/0 Lore% 2 Gallery% 5 Achievement% 4 Wizard Run 0 Options --------- Layout 1 ASCII 0 Keyboard 1 Movement Numpad Keybinds 0 Fullscreen 2 Font 24/Smallcaps Map View 50x35 Zoom Use 0% Tactical HUD 0 Map Filters NONE Filters NONE Steam 1 RUN: 707108a8-c224-4fbe-98e9-69cc347511cc